bitfinex/quotes_ETHUSD_20250715
["timestamp","ask_amount","ask_price","bid_price","bid_amount"]
[1752591830008,0.02526984,2985.7,2985.4,0.31153382]
[1752591830233,0.02526984,2985.7,2985.5,0.31153382]
[1752591830400,0.02526984,2985.7,2985.6,0.31153382]
[1752591830730,3.37456816,2985.7,2985.6,0.31153382]
[1752591831107,0.02526984,2985.7,2985.6,0.31153382]
[1752591831690,3.37456816,2985.7,2985.6,0.31153382]
[1752591832239,35.62744409,2985.7,2985.6,0.31153382]
[1752591832387,45.60217425,2985.7,2985.6,0.31153382]
[1752591832586,15.60217425,2985.7,2985.6,0.31153382]
[1752591833513,4.92969832,2985.7,2985.6,0.31153382]
[1752591833833,4.95496816,2985.7,2985.6,0.31153382]
[1752591834214,1.60566984,2985.7,2985.6,0.31153382]
[1752591834417,4.95496816,2985.7,2985.6,0.31153382]
[1752591835233,1.60566984,2985.7,2985.6,0.31203521]
[1752591835390,4.95496816,2985.7,2985.6,0.31203521]
[1752591835591,1.60566984,2985.7,2985.6,0.31203521]
[1752591835790,4.95496816,2985.7,2985.6,0.31223934]
[1752591837345,1.60566984,2985.7,2985.6,0.31223934]
[1752591837486,0.02526984,2985.7,2985.6,0.31223934]
[1752591837690,0.02626984,2985.9,2985.6,0.47943934]
[1752591837893,0.02626984,2985.9,2985.7,0.31223934]
[1752591838127,0.02626984,2985.9,2985.8,0.31223934]
[1752591838429,3.37534382,2985.9,2985.8,0.31223934]
[1752591838631,3.34929832,2985.7,2985.6,0.1672]
[1752591838925,2.94695248,2985.7,2985.6,0.3125201]
[1752591839129,2.97222232,2985.7,2985.6,0.3125201]
[1752591839335,3.34929832,2985.7,2985.6,0.3125201]
[1752591839832,35.55544423,2985.7,2985.6,0.3125201]
[1752591840034,35.53017439,2985.7,2985.6,0.3125201]
[1752591840236,41.65717439,2985.7,2985.6,0.3125201]
[1752591840920,10.98469832,2985.7,2985.6,0.3125201]
[1752591841228,1.6756,2985.7,2985.2,0.1672]
[1752591841751,0.001,2985.9,2985.5,0.1672]
[1752591841903,0.001,2985.9,2985.6,3.66194177]
[1752591842100,0.001,2985.9,2985.8,3.51638614]
[1752591842441,0.001,2985.9,2985.8,6.07464085]
[1752591842644,3.35007398,2985.9,2985.8,0.47973357]
[1752591842795,0.001,2985.9,2985.8,0.47973357]
[1752591842995,3.35007398,2985.9,2985.8,0.47973357]
[1752591843297,0.001,2985.9,2985.8,0.47973357]
[1752591843739,3.37534382,2985.9,2985.8,0.47973357]
[1752591844097,0.001,2985.9,2985.8,0.47973357]
[1752591844300,0.001,2985.9,2985.8,0.47973373]
[1752591844510,0.001,2985.9,2985.8,3.82891987]
[1752591844713,3.35007398,2985.9,2985.8,1.20090462]
[1752591844912,0.001,2985.9,2985.8,0.47973373]
[1752591845155,3.35007398,2985.9,2985.8,0.47973479]
[1752591845457,0.22576986,2986.2,2985.8,0.47973479]
[1752591845666,0.20050002,2986.2,2985.9,0.31253479]
[1752591845863,0.20050002,2986.2,2986.1,0.1672]
[1752591846030,3.54928267,2986.2,2985.9,0.47973479]
[1752591846229,0.20050002,2986.2,2985.6,6.118]
[1752591846466,0.20050002,2986.2,2986.1,0.1672]
[1752591847050,0.22576986,2986.2,2986.1,0.1672]
[1752591847253,0.20050002,2986.2,2986.1,0.1672]
[1752591848345,0.22576986,2986.2,2986.1,0.1672]
[1752591848668,3.54923754,2986.2,2986.1,0.1672]
[1752591849076,3.54923754,2986.2,2985.5,1.4825]
[1752591849077,0.22576986,2986.2,2985.7,0.1672]
[1752591849374,0.20050002,2986.2,2986.1,0.1672]
[1752591849890,0.20050002,2986.2,2986.1,5.04053816]
[1752591850041,0.20050002,2986.2,2986.1,1.69168849]
[1752591850240,0.20050002,2986.2,2986.1,0.1672]
[1752591850453,0.20050002,2986.2,2986.1,3.51604967]
[1752591850664,0.20050002,2986.2,2986.1,6.88823875]
[1752591850875,0.20050002,2986.2,2986.1,6.85475026]
[1752591851182,0.20050002,2986.2,2986.1,16.85475026]
[1752591851364,0.04,2986.9,2986.8,3.34806481]
[1752591851567,0.001,2987.1,2987.0,3.89784064]
[1752591851746,0.001,2987.1,2987.0,15.57481904]
[1752591851944,0.001,2987.1,2987.0,15.54134064]
[1752591852146,0.001,2987.1,2987.0,18.06713785]
[1752591852683,0.001,2987.1,2987.0,23.62613785]
[1752591853051,0.001,2987.1,2987.0,1.6435]
[1752591853253,0.001,2987.1,2987.0,0.1672]
[1752591854075,3.34872856,2987.1,2987.0,0.1672]
[1752591854245,0.001,2987.1,2986.7,0.03348176]
[1752591854442,0.001,2987.1,2986.5,1.5008]
[1752591854443,0.001,2987.1,2987.0,0.1672]
[1752591854950,3.34872856,2987.1,2987.0,0.1672]
[1752591855265,3.34872856,2987.1,2987.0,3.51504064]
[1752591855266,0.001,2987.1,2987.0,3.51504064]
[1752591855466,0.001,2987.1,2987.0,0.51870406]
[1752591855666,0.001,2987.1,2987.0,6.2712]
[1752591856178,0.001,2987.1,2987.0,11.15331904]
[1752591856341,0.001,2987.1,2987.0,11.66984064]
[1752591856778,0.001,2987.1,2987.0,21.66984064]
[1752591857617,0.001,2987.1,2987.0,6.2692]
[1752591857892,0.001,2987.1,2987.0,0.1672]
[1752591858060,0.001,2987.1,2987.0,6.2672]
[1752591858447,0.001,2987.1,2987.0,0.1672]
[1752591858651,3.3739984,2987.1,2987.0,6.2662]
[1752591858842,3.3739984,2987.1,2987.0,0.1672]
[1752591859045,3.3739984,2987.1,2987.0,6.2662]
[1752591859284,3.34872856,2987.1,2987.0,6.099]
[1752591859490,3.34795272,2986.9,2986.8,0.1672]
[1752591859690,0.02526984,2987.0,2986.8,6.098]
[1752591859856,4.81866419,2987.1,2986.8,6.098]
[1752591860055,4.7925814,2986.9,2985.6,1.4239]
[1752591860261,0.02526984,2986.8,2986.4,0.1672]
[1752591860556,3.3487316,2986.3,2986.2,6.097]
[1752591860762,0.02526984,2986.5,2986.2,6.097]
[1752591860946,0.02526984,2986.5,2986.2,6.2642]
[1752591861391,0.001,2987.1,2986.3,0.03348625]
[1752591861574,0.001,2987.1,2986.7,3.34810575]
[1752591861782,0.001,2987.1,2987.0,0.1672]
[1752591863001,0.001,2987.1,2987.0,6.2612]
[1752591863211,31.4687,2987.1,2985.3,3.35172008]
[1752591863349,1.4677,2986.1,2985.4,0.03349634]
[1752591863549,1.4677,2986.1,2985.3,0.002]
[1752591863550,0.02526984,2986.0,2985.3,0.002]
[1752591863748,3.34908431,2985.9,2985.3,3.3517074]
[1752591863965,3.34963488,2985.4,2985.3,0.002]
[1752591864167,12.62404233,2985.4,2985.3,0.002]
[1752591864686,4.81733488,2985.4,2985.3,0.002]
[1752591864903,9.4408486,2986.2,2985.3,0.002]
[1752591865223,3.34917147,2985.9,2985.3,0.002]
[1752591865348,4.81656317,2986.1,2985.5,3.34942495]
[1752591865554,0.02526984,2986.0,2985.5,3.34952269]
[1752591865749,0.02526984,2986.0,2985.4,6.091]
[1752591865987,1.49296984,2986.6,2985.8,3.34910845]
[1752591866190,3.34850797,2986.5,2985.9,6.09]
[1752591866492,3.34788111,2987.0,2986.0,0.03348961]
[1752591866493,3.34806481,2986.8,2986.0,0.03348961]
[1752591866795,0.02526984,2986.7,2986.0,0.03348961]
[1752591867100,3.34891602,2986.1,2985.4,3.34953781]
[1752591867395,0.02526984,2986.2,2985.6,3.34934501]
[1752591867557,0.02526984,2986.2,2985.6,3.3494105]
[1752591867773,3.37408476,2986.2,2985.6,3.349393]
[1752591867973,0.02526984,2986.2,2985.7,3.34921118]
[1752591868195,0.02526984,2986.4,2985.7,0.03349298]
[1752591868502,3.37389154,2986.4,2985.8,9.43616466]
[1752591868690,0.02526984,2986.4,2985.3,0.002]
[1752591868901,3.34871671,2986.3,2985.4,6.087]
[1752591869084,3.37403998,2986.2,2985.6,3.34933851]
[1752591869271,3.37401453,2986.2,2985.6,3.34937545]
[1752591869465,3.37401453,2986.2,2985.6,3.34932203]
[1752591869706,3.37401453,2986.2,2985.7,6.086]
[1752591869707,0.02526984,2986.2,2985.7,6.086]
[1752591870069,0.02526984,2986.7,2985.8,3.34910821]
[1752591870292,3.34857675,2986.4,2985.8,3.34910821]
[1752591870493,3.37396981,2986.3,2985.7,9.43526421]
[1752591870696,0.02526984,2986.3,2985.4,4.105769]
[1752591870948,3.34872693,2986.3,2985.5,6.11849522]
[1752591871248,0.02526984,2986.2,2985.7,3.34923053]
[1752591871401,1.4864,2986.9,2986.1,3.34884251]
[1752591871402,0.02526984,2986.5,2986.1,3.34884251]
[1752591871601,3.348355,2986.6,2986.1,6.084]
[1752591871803,0.02526984,2986.5,2986.1,9.43282626]
[1752591872001,0.02526984,2986.8,2986.1,9.43280344]
[1752591872201,3.34824988,2986.7,2986.1,9.43277094]
[1752591872428,0.02526984,2986.6,2986.1,9.43277094]
[1752591872632,3.37356314,2986.6,2986.0,3.34891235]
[1752591872836,3.37357978,2986.6,2986.1,6.083]
[1752591872996,3.37357978,2986.6,2985.9,3.34903074]
[1752591873197,3.37357978,2986.6,2986.4,0.1672]
[1752591873198,0.02526984,2986.6,2986.4,0.1672]
[1752591873394,3.34851326,2986.4,2986.3,6.082]
[1752591873647,3.3737831,2986.4,2986.3,6.082]
[1752591873849,3.34862538,2986.3,2986.2,0.1672]
[1752591873999,3.34884967,2986.1,2986.0,6.081]
[1752591874201,3.34884967,2986.1,2986.0,0.1672]
[1752591874436,3.34884967,2986.1,2985.3,0.002]
[1752591874437,3.34963488,2985.4,2985.3,0.002]
[1752591874606,4.87433488,2985.4,2985.3,1e-08]
[1752591874925,5.04153488,2985.4,2985.3,1e-08]
[1752591875136,3.3498593,2985.2,2985.1,1e-08]
[1752591875373,3.35070547,2984.5,2984.1,0.042]
[1752591875659,3.35070547,2984.5,2984.4,0.1672]
[1752591875660,3.35064499,2984.5,2984.4,0.1672]
[1752591875863,3.35098183,2984.2,2984.1,0.042]
[1752591876226,1.4596,2984.6,2984.1,0.042]
[1752591876422,3.35098183,2984.2,2984.1,0.2092]
[1752591876964,3.3761598,2984.3,2984.1,0.042]
[1752591877143,0.33741195,2984.2,2984.1,0.042]
[1752591877348,0.19246984,2984.3,2984.1,0.042]
[1752591877858,0.02526984,2984.3,2984.1,0.042]
[1752591878162,0.1672,2984.4,2984.1,0.042]
[1752591878360,0.02526984,2984.3,2984.1,0.042]
[1752591878518,3.37617385,2984.3,2984.1,0.042]
[1752591878721,0.1672,2984.3,2984.1,0.042]
[1752591878965,0.02526984,2984.2,2984.1,0.2092]
[1752591879266,1.4596,2984.6,2984.1,0.042]
[1752591879439,0.02526984,2984.8,2984.4,3.51785405]
[1752591879638,0.02526984,2984.8,2984.5,3.35063393]
[1752591880163,10.91250732,2985.1,2984.1,0.042]
[1752591880164,0.02526984,2985.0,2984.1,0.042]
[1752591880463,1.6479,2985.5,2984.7,0.1672]
[1752591880668,0.02526984,2985.4,2985.1,3.34990665]
[1752591880967,0.02526984,2985.4,2985.1,0.1672]
[1752591881272,0.02526984,2985.4,2985.1,3.51710763]
[1752591881441,0.02526984,2985.4,2985.1,0.1672]
[1752591881635,0.02526984,2985.6,2984.9,0.03350195]
[1752591881846,3.34925595,2985.8,2985.3,0.1672]
[1752591882057,3.35011429,2985.0,2984.4,3.35067466]
[1752591882238,0.02526984,2984.9,2984.8,0.1672]
[1752591882452,0.02526984,2985.2,2984.8,3.35030172]
[1752591882767,0.02526984,2985.2,2984.8,0.1672]
[1752591882976,3.34978837,2985.3,2984.8,0.1672]
[1752591883176,0.02526984,2985.2,2984.8,0.1672]
[1752591883471,3.37513558,2985.2,2984.8,0.1672]
[1752591883672,0.02526984,2985.4,2984.8,0.35177268]
[1752591883848,0.02526984,2985.4,2985.1,0.1672]
[1752591884959,3.34964529,2985.4,2985.1,0.1672]
[1752591885293,3.34997152,2985.1,2984.4,3.35073111]
[1752591885484,11.15614304,2985.6,2984.3,0.03350869]
[1752591885485,0.02526984,2985.0,2984.3,0.03350869]
[1752591885698,3.34995204,2985.2,2984.5,3.35055934]
[1752591885835,3.35018015,2985.0,2984.2,3.35089252]
[1752591886041,0.02526984,2984.9,2984.3,6.44179794]
[1752591886241,0.02526984,2985.5,2984.6,3.35042627]
[1752591886449,3.34988996,2985.2,2984.6,3.35042627]
[1752591886662,0.02526984,2985.1,2984.8,3.35030333]
[1752591886944,1.5519,2985.7,2984.7,3.38385098]
[1752591886945,3.34979579,2985.3,2984.7,3.38385098]
[1752591887147,0.02526984,2985.4,2984.8,3.35030822]
[1752591887393,3.37469351,2985.6,2984.7,0.0335042]
[1752591887556,0.02526984,2985.6,2985.1,3.34996785]
[1752591887970,3.34964583,2985.4,2984.9,6.067]
[1752591888169,3.37468407,2985.6,2984.9,9.41717872]
[1752591888170,0.02526984,2985.3,2984.9,9.41717872]
[1752591888477,1.5519,2985.7,2985.1,3.34989328]
[1752591888645,0.02526984,2985.6,2984.9,7.34375755]
[1752591889077,3.349393,2985.7,2985.1,3.34990364]
[1752591889258,0.02526984,2985.6,2985.2,3.34982611]
[1752591889459,0.02526984,2985.6,2985.0,0.03350083]
[1752591889660,3.3742687,2986.0,2985.4,3.34956816]
[1752591889860,3.3742687,2986.0,2985.1,0.73772584]
[1752591889861,3.34874698,2986.2,2985.6,3.34937196]
[1752591890060,0.02526984,2986.1,2985.6,3.3493288]
[1752591890380,0.02526984,2986.4,2986.0,3.34886558]
[1752591890775,3.37358028,2986.6,2986.0,3.34886558]
[1752591890975,3.37358028,2986.6,2986.1,3.34883891]
[1752591891176,0.02526984,2986.7,2985.9,3.34903619]
[1752591891379,0.02526984,2986.7,2986.0,6.43039323]
[1752591891583,0.02526984,2986.7,2986.2,3.34866712]
[1752591891794,3.37344898,2986.7,2986.2,3.34866712]
[1752591891966,0.02526984,2986.7,2985.7,1.419]
[1752591892176,3.34840113,2986.5,2985.9,13.34901661]
[1752591892478,3.34869966,2986.3,2986.0,6.061]
[1752591892881,0.02526984,2986.4,2985.3,9.5659]
[1752591892882,3.34887115,2986.1,2985.3,9.5659]
[1752591893093,7.80670745,2986.4,2985.4,16.06]
[1752591893094,3.34927084,2985.8,2985.4,16.06]
[1752591893262,0.02526984,2985.7,2985.4,6.06]
[1752591893458,0.02526984,2985.9,2985.4,6.06]
[1752591893658,1.4438,2986.0,2985.6,3.34940865]
[1752591894001,7.80670745,2986.4,2985.6,3.34940865]
[1752591894002,1.5263,2986.4,2985.9,3.34899869]
[1752591894294,3.34881891,2986.2,2985.9,6.058]
[1752591894465,3.37407444,2986.2,2985.9,6.058]
[1752591895072,0.02526984,2986.2,2985.9,9.57425823]
[1752591895283,5.06730491,2986.4,2985.9,6.2252]
[1752591895499,3.37393914,2986.3,2985.9,6.2252]
[1752591895708,3.37393914,2986.3,2985.9,0.1672]
[1752591895911,0.02526984,2986.3,2985.9,6.2252]
[1752591896801,1.5263,2986.4,2986.2,0.1672]
[1752591897170,0.02526984,2986.3,2986.2,0.1672]
[1752591897379,3.37389522,2986.3,2986.2,0.1672]
[1752591897576,3.3487492,2986.2,2985.4,10.0]
[1752591897886,3.34920123,2985.8,2985.5,6.054]
[1752591898090,3.37457662,2985.7,2985.6,0.1672]
[1752591898319,3.37447991,2985.8,2985.6,0.1672]
[1752591898742,4.82769832,2985.7,2985.6,0.1672]
[1752591898938,0.1672,2985.6,2985.2,6.052]
[1752591899085,1.4784,2985.7,2985.2,6.052]
[1752591899286,1.50366984,2985.7,2985.5,0.1672]
[1752591899539,1.4784,2985.7,2985.5,0.1672]
[1752591899741,0.02526984,2985.9,2985.5,3.51670954]
[1752591899893,3.34925162,2985.8,2985.5,0.1672]
[1752591900252,0.02526984,2986.0,2985.5,6.051]
[1752591900427,3.34876132,2986.2,2985.7,3.51646966]
[1752591900599,0.02526984,2986.1,2985.9,0.1672]
[1752591900799,3.34918591,2985.9,2985.6,6.051]
[1752591901038,0.02526984,2985.8,2985.6,6.051]
[1752591901354,0.02526984,2985.8,2985.5,0.1672]
[1752591901518,11.32278226,2986.1,2985.5,0.1672]
[1752591901718,3.34935277,2985.7,2985.5,0.1672]
[1752591901918,0.02526984,2985.6,2985.5,0.1672]
[1752591902227,0.02526984,2985.9,2985.5,0.1672]
[1752591902417,3.37440482,2985.9,2985.5,0.1672]
[1752591902611,0.02526984,2985.9,2985.5,0.1672]
[1752591902811,0.02526984,2986.3,2985.5,0.95658152]
[1752591903139,0.19246984,2986.4,2985.9,0.1672]
[1752591903344,0.19246984,2986.4,2985.9,6.2142]
[1752591903517,3.34883637,2986.2,2985.9,0.1672]
[1752591903708,3.37414426,2986.1,2985.9,0.1672]
[1752591903930,0.02526984,2986.2,2985.9,0.1672]
[1752591904131,4.91927527,2986.9,2986.1,3.3487687]
[1752591904338,3.34840695,2986.5,2986.0,6.046]
[1752591904639,0.02526984,2986.4,2986.0,6.046]
[1752591904840,0.1672,2986.0,2985.5,0.1672]
[1752591905042,0.02526984,2985.9,2985.5,0.1672]
[1752591905356,3.37437647,2985.9,2985.5,0.1672]
[1752591905559,0.02526984,2985.9,2985.5,0.1672]
[1752591905760,3.34955468,2985.5,2984.7,1.5648]
[1752591905922,0.02526984,2985.4,2985.2,0.1672]
[1752591906251,0.02526984,2985.4,2985.3,6.043]
[1752591906454,0.02526984,2985.5,2985.2,6.2102]
[1752591906656,1.5582,2985.4,2984.5,0.002]
[1752591906857,3.35019598,2984.9,2984.8,0.1672]
[1752591907025,0.02526984,2985.3,2984.5,0.002]
[1752591907225,3.35031915,2984.8,2984.6,0.1672]
[1752591907434,3.35031915,2984.8,2984.5,0.002]
[1752591907435,3.37569031,2984.7,2984.5,0.002]
[1752591907761,1.5317,2984.6,2984.5,0.002]
[1752591907976,3.35000507,2985.1,2984.5,0.002]
[1752591908180,0.02526984,2985.0,2984.5,3.35256582]
[1752591908483,3.35053273,2984.6,2984.5,0.002]
[1752591908683,4.88223273,2984.6,2984.5,0.002]
[1752591908857,4.90750257,2984.6,2984.5,0.002]
[1752591909588,44.90750257,2984.6,2984.5,0.002]
[1752591909891,44.88223273,2984.6,2984.5,0.002]
[1752591910044,46.82086313,2984.6,2984.5,0.002]
[1752591910682,54.62757058,2984.6,2984.5,0.002]
[1752591910885,4.88223273,2984.6,2984.5,0.002]
[1752591911148,4.90750257,2984.6,2984.5,0.002]
[1752591911392,44.90750257,2984.6,2984.5,0.002]
[1752591911589,44.88223273,2984.6,2984.5,0.002]
[1752591912257,4.83798183,2984.2,2984.1,0.042]
[1752591912472,4.83798183,2984.2,2984.0,1e-08]
[1752591912473,46.79789439,2984.2,2984.0,1e-08]
[1752591912671,34.83809413,2984.1,2984.0,1e-08]
[1752591912996,4.83809413,2984.1,2984.0,1e-08]
[1752591913143,40.87409413,2984.1,2984.0,1e-08]
[1752591913544,41.42409413,2984.1,2984.0,1e-08]
[1752591913849,41.42409413,2984.1,2983.4,0.003]
[1752591913850,3.35176805,2983.5,2983.4,0.003]
[1752591914054,52.67984534,2983.5,2983.4,0.003]
[1752591914256,52.6545755,2983.5,2983.4,0.003]
[1752591914671,13.3518804,2983.4,2983.1,0.04]
[1752591914984,14.84820512,2983.2,2983.1,0.04]
[1752591915159,52.81784784,2983.2,2983.1,0.04]
[1752591915562,22.65513731,2983.0,2982.9,0.002]
[1752591915762,3.35322915,2982.2,2982.1,0.04]
[1752591915966,3.52042915,2982.2,2982.1,0.04]
[1752591916151,5.04179899,2982.2,2982.1,0.04]
[1752591916356,5.40003416,2982.2,2982.1,0.04]
[1752591916771,35.40003416,2982.2,2982.1,0.04]
[1752591917052,41.40676432,2982.2,2982.1,0.04]
[1752591917266,51.40676432,2982.2,2982.1,0.04]
[1752591918301,3.35390394,2981.6,2981.5,0.002]
[1752591918452,10.08194334,2981.6,2981.5,0.002]
[1752591918652,40.0566735,2981.6,2981.5,0.002]
[1752591918992,41.5849735,2981.6,2981.5,0.002]
[1752591919589,51.5849735,2981.6,2981.5,1e-08]
[1752591920512,4.88220394,2981.6,2981.5,1e-08]
[1752591920712,34.90747378,2981.6,2981.5,1e-08]
[1752591920870,34.88220394,2981.6,2981.5,1e-08]
[1752591921617,10.91320394,2981.6,2981.5,1e-08]
[1752591922465,40.91320394,2981.6,2981.5,1e-08]
[1752591922666,44.62355411,2981.6,2981.5,1e-08]
[1752591922889,50.65355411,2981.6,2981.5,1e-08]
[1752591923266,60.65355411,2981.6,2981.5,1e-08]
[1752591924680,60.65355411,2981.6,2981.1,0.04]
[1752591924681,3.35435395,2981.2,2981.1,0.04]
[1752591924893,39.40762379,2981.2,2981.1,0.04]
[1752591925092,39.74058912,2981.2,2981.1,0.04]
[1752591925421,9.38035395,2981.2,2981.1,0.04]
[1752591925622,1.5283,2981.6,2981.1,0.04]
[1752591925791,3.35435395,2981.2,2981.1,0.04]
[1752591925990,6.05026984,2981.2,2981.1,0.04]
[1752591926516,0.02526984,2981.2,2981.1,0.04]
[1752591926753,3.37962379,2981.2,2981.1,0.04]
[1752591927214,0.02526984,2981.2,2981.1,0.04]
[1752591927418,6.024,2981.3,2981.1,0.04]
[1752591927601,0.02526984,2981.4,2981.2,3.66239987]
[1752591927804,3.3540196,2981.5,2981.3,0.30806506]
[1752591927968,0.02526984,2981.4,2981.1,0.04]
[1752591928171,3.379268,2981.6,2981.2,0.30805929]
[1752591928421,3.379268,2981.6,2981.3,0.30805929]
[1752591928422,0.02526984,2981.6,2981.3,0.30805929]
[1752591928594,1.483,2982.1,2981.4,0.30805929]
[1752591928595,6.022,2981.8,2981.4,0.30805929]
[1752591928791,0.02526984,2981.7,2981.2,3.80423949]
[1752591928996,0.02526984,2981.7,2981.3,0.75803447]
[1752591929211,0.02526984,2981.7,2981.4,0.30813447]
[1752591929408,0.02526984,2982.0,2981.5,2.24886669]
[1752591929609,0.02526984,2982.0,2981.6,0.30826669]
[1752591929808,30.0,2981.9,2981.7,0.30821546]
[1752591929997,3.35430088,2981.3,2981.1,0.04]
[1752591930191,0.02526984,2981.7,2981.1,3.39446647]
[1752591930417,0.02526984,2981.7,2981.2,0.30829918]
[1752591930588,0.02526984,2981.7,2981.3,4.11236332]
[1752591930792,0.02526984,2982.1,2981.5,1.4974]
[1752591931106,6.04526984,2982.7,2981.7,3.35374158]
[1752591931277,0.1672,2982.2,2981.8,3.66196958]
[1752591931621,0.02526984,2982.1,2982.0,3.35345405]
[1752591931779,0.1672,2982.2,2982.1,3.3533416]
[1752591931980,0.02526984,2982.5,2982.2,4.85057729]
[1752591932183,0.1672,2982.6,2982.5,3.35289186]
[1752591932382,0.1672,2982.6,2982.5,4.11109104]
[1752591932627,0.1672,2983.1,2982.9,3.35237647]
[1752591932831,0.02526984,2983.0,2982.9,4.92587647]
[1752591932978,0.1672,2983.1,2982.9,1.88208754]
[1752591933316,0.02526984,2983.0,2982.9,2.0234]
[1752591933517,3.3775997,2983.0,2982.9,0.30888446]
[1752591934120,3.35300429,2982.4,2981.2,1.5466]
[1752591934320,7.80670745,2982.1,2981.1,0.04]
[1752591934527,40.02526984,2982.0,2981.1,0.04]
[1752591934824,1.93839792,2982.0,2981.1,0.4899]
[1752591935119,3.35392564,2981.6,2981.1,0.4899]
[1752591935277,3.35412893,2981.4,2981.1,0.04]
[1752591935477,0.02526984,2981.3,2981.1,0.04]
[1752591935750,0.02526984,2981.4,2981.2,0.4499]
[1752591936019,1.548,2981.8,2981.1,0.04]
[1752591936228,30.02526984,2981.7,2981.1,0.04]
[1752591936430,3.35398154,2981.6,2981.1,0.04]
[1752591936738,3.37931626,2981.5,2981.1,0.04]
[1752591936872,3.35435395,2981.2,2981.1,0.04]
[1752591937311,0.02526984,2981.3,2981.1,0.04]
[1752591937681,3.37956167,2981.3,2981.1,0.04]
[1752591938032,0.02526984,2981.3,2981.1,0.04]
[1752591938220,0.02526984,2981.7,2981.2,0.4499]
[1752591938417,0.02526984,2981.7,2981.2,0.83433318]
[1752591938725,0.02526984,2981.7,2981.2,3.73876282]
[1752591938909,0.02526984,2981.7,2981.3,0.4499]
[1752591939080,3.35359876,2981.9,2981.3,3.80406907]
[1752591939310,0.02526984,2981.9,2981.4,4.85253576]
[1752591939512,0.02526984,2981.9,2981.5,0.4499]
[1752591939849,7.4942,2982.6,2981.8,3.35361588]
[1752591939850,0.02526984,2982.5,2981.8,3.35361588]
[1752591940048,0.02526984,2982.5,2981.9,0.4499]
[1752591940209,3.35300773,2982.4,2981.9,0.4499]
[1752591940410,0.02526984,2982.3,2981.9,0.4499]
[1752591940645,0.02526984,2982.3,2981.5,6.007]
[1752591940947,0.02526984,2982.9,2982.4,1.4985]
[1752591941247,3.35203559,2983.3,2982.6,3.35276079]
[1752591941430,0.02526984,2983.2,2982.5,0.4499]
[1752591941624,0.02526984,2983.2,2982.7,3.35259943]
[1752591941819,0.02526984,2983.2,2982.4,7.5055]
[1752591941820,0.02526984,2983.2,2982.8,0.4499]
[1752591942210,0.02526984,2983.2,2982.9,0.4499]
[1752591942666,0.02526984,2983.3,2982.9,0.4499]
[1752591942950,3.37729291,2983.3,2982.9,0.4499]
[1752591943148,3.35211946,2983.2,2982.9,0.4499]
[1752591943334,0.02526984,2983.1,2982.5,0.4499]
[1752591943534,3.35194448,2983.4,2982.5,3.80269326]
[1752591943738,0.02526984,2983.3,2982.6,3.3527592]
[1752591943944,0.1672,2983.1,2982.6,0.1672]
[1752591944138,0.02526984,2983.0,2982.7,3.80249281]
[1752591944339,0.02526984,2983.0,2982.9,3.35244225]
[1752591944543,0.1672,2983.1,2983.0,3.35232986]
[1752591944747,0.19246984,2983.7,2983.2,3.35199495]
[1752591945055,0.001,2983.8,2983.4,1.4966]
[1752591945588,0.001,2983.8,2983.7,3.35154338]
[1752591945929,0.001,2983.8,2983.7,3.80144338]
[1752591947055,3.35165309,2983.7,2983.0,1.4192]
[1752591947351,3.37699527,2983.6,2983.0,4.77150685]
[1752591947552,0.02526984,2983.6,2983.0,1.4192]
[1752591947951,1.55826984,2983.6,2982.7,5.996]
[1752591948164,3.37692977,2983.6,2983.0,3.35223067]
[1752591948365,0.02526984,2983.6,2982.9,3.35244225]
[1752591948567,3.3516709,2983.6,2983.0,3.35227838]
[1752591948771,3.35228088,2983.1,2982.8,5.995]
[1752591948940,3.35205803,2983.3,2982.7,3.35266325]
[1752591949266,3.35222246,2983.1,2982.6,7.4132]
[1752591949474,0.02526984,2983.0,2982.1,0.4499]
[1752591949646,3.37762867,2983.0,2982.4,3.35298542]
[1752591949845,3.35244336,2982.9,2982.4,5.993]
[1752591950069,0.02526984,2982.8,2982.4,9.34600004]
[1752591950243,0.02526984,2982.8,2982.4,5.993]
[1752591951171,0.02526984,2983.3,2982.4,5.993]
[1752591951357,3.35245915,2982.9,2982.3,3.35307553]
[1752591951558,0.02526984,2982.8,2982.4,3.35298783]
[1752591951870,0.02526984,2982.8,2982.3,9.34404427]
[1752591952034,4.81298433,2986.0,2982.7,7.80670745]
[1752591952234,0.04,2985.9,2984.8,4.89120822]
[1752591952436,3.3890959,2985.9,2984.8,4.9247113]
[1752591952634,0.04,2985.9,2984.8,4.9247113]
[1752591952834,0.04,2985.9,2984.8,5.34110822]
[1752591953080,3.34939208,2985.7,2984.8,4.89120822]
[1752591953251,3.34944661,2985.6,2984.8,4.89120822]
[1752591953448,3.80846246,2985.8,2984.8,5.34110822]
[1752591953648,0.4592,2985.8,2984.8,5.34110822]
[1752591953849,3.34949045,2985.6,2984.8,5.34110822]
[1752591954077,3.3493289,2985.7,2984.8,5.34110822]
[1752591954265,3.34930074,2985.7,2984.8,5.34110822]
[1752591954464,3.34922917,2985.8,2984.8,5.34110822]
[1752591954778,0.04,2985.9,2984.8,5.34110822]
[1752591954979,0.1672,2985.6,2984.8,6.97972034]
[1752591955138,0.04,2985.9,2984.8,6.97972034]
[1752591955339,0.1672,2985.8,2984.8,6.97972034]
[1752591957182,0.1672,2985.8,2985.7,3.34929832]
[1752591957345,0.04,2985.9,2985.7,3.34925898]
[1752591957541,0.001,2987.1,2985.9,1.4963]
[1752591957746,0.001,2987.1,2986.1,1.4963]
[1752591957970,0.001,2987.1,2986.9,0.1672]
[1752591958146,3.79502709,2987.0,2986.4,0.1672]
[1752591958341,0.4471,2987.0,2986.3,3.34855823]
[1752591958542,0.1672,2986.7,2986.4,5.981]
[1752591959158,3.34837579,2986.6,2986.4,5.98]
[1752591959479,3.51541256,2986.7,2986.3,5.98]
[1752591959661,0.85353874,2986.7,2986.2,0.1672]
[1752591959974,0.1672,2986.7,2986.2,0.1672]
[1752591960139,3.34862538,2986.3,2986.1,5.978]
[1752591960341,3.34862538,2986.3,2985.8,8.5057]
[1752591960342,3.34866542,2986.3,2986.0,0.1672]
[1752591960627,0.4471,2986.3,2985.3,1.5491]
[1752591960773,0.1672,2985.9,2985.4,6.1452]